fUST/lending_fUST_20240109
["ID","MTS","AMOUNT","RATE_DAILY","PERIOD"]
[310879375,1704763848350,-500.0,0.00036164,2]
[310879376,1704763848360,-500.0,0.00036164,2]
[310879377,1704763848371,-500.0,0.00036164,2]
[310879378,1704763848381,-502.00436765,0.00036164,2]
[310879379,1704763848392,-1250.59,0.00036164,2]
[310879380,1704763848401,-2315.92,0.00036164,2]
[310879381,1704763848411,-500.0,0.00036164,2]
[310879382,1704763848422,-500.0,0.00036164,2]
[310879383,1704763848432,-500.0,0.00036164,2]
[310879384,1704763848441,-630.69,0.00036164,2]
[310879385,1704763848450,-5708.91,0.00036164,2]
[310879386,1704763848460,-768.87,0.00036164,2]
[310879388,1704763848469,-13543.63,0.00036164,2]
[310879389,1704763848479,-500.0,0.00036164,2]
[310879391,1704763848489,-500.0,0.00036164,2]
[310879393,1704763848499,-500.0,0.00036164,2]
[310879395,1704763848510,-1942.37,0.00036164,2]
[310879397,1704763848519,-500.0,0.00036164,2]
[310879399,1704763848528,-500.0,0.00036164,2]
[310879401,1704763848537,-591.97,0.00036164,2]
[310879403,1704763848546,-567.56680786,0.00036164,2]
[310879405,1704763848555,-48896.68,0.00036164,2]
[310879407,1704763848564,-2189.47,0.00036164,2]
[310879409,1704763848573,-500.0,0.00036164,2]
[310879411,1704763848583,-1653.03,0.00036164,2]
[310879413,1704763848592,-564.37579394,0.00036164,2]
[310879415,1704763848601,-500.0,0.00036164,2]
[310879417,1704763848611,-500.0,0.00036164,2]
[310879419,1704763848620,-500.0,0.00036164,2]
[310879421,1704763848630,-2042.88,0.00036164,2]
[310879423,1704763848639,-500.0,0.00036164,2]
[310879425,1704763848648,-2520.41,0.00036164,2]
[310879427,1704763848657,-500.0,0.00036164,2]
[310879429,1704763848666,-500.0,0.00036164,2]
[310879431,1704763848675,-500.0,0.00036164,2]
[310879433,1704763848684,-500.0,0.00036164,5]
[310879435,1704763848693,-500.0,0.00036164,2]
[310879437,1704763848702,-500.0,0.00036164,2]
[310879439,1704763848711,-665.06,0.00036164,2]
[310879441,1704763848720,-500.0,0.00036164,2]
[310879443,1704763848729,-1000.0,0.00036164,2]
[310879445,1704763848738,-500.0,0.00036164,2]
[310879447,1704763848747,-2260.43,0.00036164,2]
[310879449,1704763848756,-507.47503805,0.00036164,2]
[310879451,1704763848765,-500.0,0.00036164,2]
[310879453,1704763848774,-500.0,0.00036164,2]
[310879455,1704763848783,-500.0,0.00036164,2]
[310879457,1704763848792,-500.0,0.00036164,2]
[310879459,1704763848801,-500.0,0.00036164,2]
[310879461,1704763848810,-500.0,0.00036164,2]
[310879463,1704763848819,-1401.77,0.00036164,2]
[310879464,1704763848828,-500.0,0.00036164,2]
[310879466,1704763848837,-578.75542968,0.00036164,2]
[310879469,1704763848847,-500.0,0.00036164,2]
[310879470,1704763848857,-179.487837,0.00036184,2]
[310879472,1704763848866,-236.928085,0.00036184,2]
[310879474,1704763848875,-169.004277,0.00036184,2]
[310879476,1704763848884,-185.474215,0.00036184,2]
[310879478,1704763848893,-253.34373528,0.0003624,2]
[310879480,1704763848902,-153.279627,0.00036273,2]
[310879482,1704763848911,-2272.34340696,0.00036273,2]
[310879484,1704763848919,-2272.34340696,0.00036273,2]
[310879486,1704763848929,-2272.34340696,0.00036273,2]
[310879488,1704763848938,-2272.34340696,0.00036273,2]
[310879490,1704763848947,-2272.34340696,0.00036273,2]
[310879492,1704763848956,-2272.34340696,0.00036273,2]
[310879494,1704763848965,-2272.34340696,0.00036273,2]
[310879496,1704763848974,-2272.34340696,0.00036273,2]
[310879498,1704763848983,-2272.34340696,0.00036273,2]
[310879500,1704763848992,-2272.34340696,0.00036273,2]
[310879502,1704763849001,-301.81890865,0.00036352,4]
[310879504,1704763849010,-300.0,0.000364,18]
[310879506,1704763849020,-500.0,0.00036438,2]
[310879508,1704763849029,-500.0,0.00036438,2]
[310879510,1704763849039,-960.29,0.00036438,2]
[310879512,1704763849048,-500.0,0.00036438,2]
[310879514,1704763849057,-500.0,0.00036438,2]
[310879516,1704763849066,-222.05798896,0.00036438,2]
[310879518,1704763849076,-500.0,0.00036438,2]
[310879520,1704763849085,-541.40266471,0.00036438,2]
[310879522,1704763849095,-368.57589035,0.00036438,2]
[310879524,1704763849105,-519.67950424,0.00036438,2]
[310879526,1704763849115,-500.0,0.00036438,2]
[310879528,1704763849124,-500.0,0.00036438,2]
[310879530,1704763849133,-500.0,0.00036438,2]
[310879532,1704763849142,-500.0,0.00036438,2]
[310879534,1704763849152,-951.92,0.00036438,2]
[310879536,1704763849162,-500.0,0.00036438,2]
[310879538,1704763849171,-500.0,0.00036438,2]
[310879540,1704763849179,-500.0,0.00036438,2]
[310879541,1704763849188,-500.0,0.00036438,2]
[310879543,1704763849198,-1300.3,0.00036438,2]
[310879545,1704763849209,-500.0,0.00036438,2]
[310879546,1704763849219,-500.0,0.00036438,2]
[310879547,1704763849228,-502.53774801,0.00036438,2]
[310879548,1704763849237,-500.0,0.00036438,2]
[310879549,1704763849246,-500.0,0.00036438,2]
[310879550,1704763849256,-500.0,0.00036438,2]
[310879551,1704763849265,-500.0,0.00036438,2]
[310879552,1704763849274,-500.0,0.00036438,2]
[310879553,1704763849283,-500.0,0.00036438,2]
[310879554,1704763849292,-500.0,0.00036438,2]
[310879555,1704763849303,-595.61,0.00036438,2]
[310879556,1704763849312,-500.0,0.00036438,2]
[310879557,1704763849322,-500.0,0.00036438,2]
[310879558,1704763849331,-500.0,0.00036438,2]
[310879559,1704763849340,-500.0,0.00036438,2]
[310879560,1704763849351,-466.93011775,0.00036438,2]
[310879561,1704763849361,-500.0,0.00036438,2]
[310879562,1704763849370,-938.87,0.00036438,2]
[310879563,1704763849379,-500.0,0.00036438,2]
[310879564,1704763849388,-500.0,0.00036438,2]
[310879565,1704763849397,-500.0,0.00036438,2]
[310879566,1704763849406,-500.0,0.00036438,2]
[310879567,1704763849416,-500.0,0.00036438,2]
[310879568,1704763849425,-500.0,0.00036438,2]
[310879569,1704763849435,-500.0,0.00036438,2]
[310879570,1704763849444,-500.0,0.00036438,2]
[310879571,1704763849454,-619.80399878,0.00036438,2]
[310879572,1704763849464,-1603.58,0.00036438,2]
[310879573,1704763849473,-500.0,0.00036438,2]
[310879574,1704763849483,-500.0,0.00036438,2]
[310879575,1704763849493,-500.0,0.00036438,2]
[310879576,1704763849503,-673.02,0.00036438,2]
[310879577,1704763849513,-500.0,0.00036438,2]
[310879578,1704763849522,-500.0,0.00036438,2]
[310879579,1704763849532,-500.0,0.00036438,2]
[310879580,1704763849541,-500.0,0.00036438,2]
[310879581,1704763849551,-500.0,0.00036438,2]
[310879582,1704763849560,-500.0,0.00036438,2]
[310879583,1704763849570,-500.0,0.00036438,2]
[310879584,1704763849579,-399.41562071,0.00036438,2]
[310879585,1704763849590,-500.0,0.00036438,2]
[310879586,1704763849602,-500.0,0.00036438,2]
[310879587,1704763849612,-1624.12,0.00036438,2]
[310879588,1704763849622,-1386.38,0.00036438,2]
[310879589,1704763849632,-500.0,0.00036438,2]
[310879590,1704763849641,-500.0,0.00036438,2]
[310879591,1704763849650,-500.0,0.00036438,2]
[310879592,1704763849660,-500.0,0.00036438,2]
[310879593,1704763849670,-500.0,0.00036438,2]
[310879594,1704763849680,-529.97,0.00036438,2]
[310879595,1704763849689,-500.0,0.00036438,2]
[310879596,1704763849699,-500.0,0.00036438,2]
[310879597,1704763849708,-1237.49,0.00036438,2]
[310879598,1704763849718,-500.0,0.00036438,2]
[310879599,1704763849730,-500.0,0.00036438,2]
[310879600,1704763849739,-500.0,0.00036438,2]
[310879601,1704763849748,-500.0,0.00036438,2]
[310879602,1704763849758,-500.0,0.00036438,2]
[310879603,1704763849767,-1085.61,0.00036438,2]
[310879604,1704763849776,-500.0,0.00036438,2]
[310879605,1704763849785,-856.63,0.00036438,2]
[310879606,1704763849795,-500.0,0.00036438,2]
[310879607,1704763849806,-1836.91,0.00036438,2]
[310879608,1704763849815,-500.0,0.00036438,2]
[310879609,1704763849824,-500.0,0.00036438,2]
[310879610,1704763849833,-1162.17,0.00036438,2]
[310879611,1704763849844,-500.0,0.00036438,2]
[310879612,1704763849853,-5186.03,0.00036438,2]
[310879613,1704763849862,-500.0,0.00036438,2]
[310879614,1704763849872,-500.0,0.00036438,2]
[310879615,1704763849881,-2694.64,0.00036438,2]
[310879616,1704763849890,-500.0,0.00036438,2]
[310879617,1704763849899,-576.66690725,0.00036438,2]
[310879618,1704763849909,-500.0,0.00036438,2]
[310879619,1704763849918,-500.0,0.00036438,2]
[310879620,1704763849927,-500.0,0.00036438,2]
[310879621,1704763849936,-500.0,0.00036438,2]
[310879622,1704763849945,-1250.59,0.00036438,2]
[310879623,1704763849954,-2315.92,0.00036438,2]
[310879624,1704763849963,-500.0,0.00036438,2]
[310879625,1704763849973,-500.0,0.00036438,2]
[310879626,1704763849982,-630.69,0.00036438,2]
[310879627,1704763849991,-5708.91,0.00036438,2]
[310879628,1704763850000,-768.87,0.00036438,2]
[310879629,1704763850010,-13543.63,0.00036438,2]
[310879630,1704763850019,-500.0,0.00036438,2]
[310879631,1704763850028,-500.0,0.00036438,2]
[310879632,1704763850038,-1942.37,0.00036438,2]
[310879633,1704763850047,-500.0,0.00036438,2]
[310879634,1704763850056,-500.0,0.00036438,2]
[310879635,1704763850067,-591.97,0.00036438,2]
[310879636,1704763850076,-48896.68,0.00036438,2]
[310879637,1704763850185,-2189.47,0.00036438,2]
[310879638,1704763850195,-500.0,0.00036438,2]
[310879639,1704763850205,-1653.03,0.00036438,2]
[310879640,1704763850215,-500.0,0.00036438,2]
[310879641,1704763850225,-500.0,0.00036438,2]
[310879642,1704763850235,-500.0,0.00036438,2]
[310879643,1704763850244,-2042.88,0.00036438,2]
[310879644,1704763850253,-2520.41,0.00036438,2]
[310879645,1704763850263,-562.64038553,0.00036438,2]
[310879646,1704763850272,-500.0,0.00036438,2]
[310879647,1704763850282,-500.0,0.00036438,2]
[310879648,1704763850291,-500.0,0.00036438,5]
[310879649,1704763850300,-500.0,0.00036438,2]
[310879650,1704763850310,-500.0,0.00036438,2]
[310879651,1704763850319,-665.06,0.00036438,2]
[310879652,1704763850328,-500.0,0.00036438,2]
[310879653,1704763850338,-1000.0,0.00036438,2]
[310879654,1704763850348,-500.0,0.00036438,2]
[310879655,1704763850358,-2260.43,0.00036438,2]
[310879656,1704763850368,-500.0,0.00036438,2]
[310879657,1704763850378,-619.84455865,0.00036438,2]
[310879658,1704763850387,-500.0,0.00036438,2]
[310879659,1704763850396,-539.96923421,0.00036438,2]
[310879660,1704763850406,-500.0,0.00036438,2]
[310879661,1704763850415,-1401.77,0.00036438,2]
[310879662,1704763850425,-500.0,0.00036438,2]
[310879663,1704763850434,-500.0,0.00036438,2]
[310879664,1704763850443,-5619.53311938,0.00036481,2]
[310879665,1704763850452,-165.11158296,0.000365,2]
[310879666,1704763850462,-428.213124,0.00036575,4]
[310879667,1704763850471,-241.699096,0.0003661,2]
[310879668,1704763850481,-223.126941,0.0003661,2]
[310879669,1704763850491,-500.0,0.00036712,2]
[310879670,1704763850501,-960.29,0.00036712,2]
[310879671,1704763850510,-619.84209997,0.00036712,2]
[310879672,1704763850520,-250.55150625,0.00036712,2]
[310879673,1704763850529,-500.0,0.00036712,2]
[310879674,1704763850540,-500.0,0.00036712,2]
[310879675,1704763850549,-338.3966302,0.00036712,2]
[310879676,1704763850589,-500.0,0.00036712,2]
[310879677,1704763850600,-500.0,0.00036712,2]
[310879678,1704763850611,-951.92,0.00036712,2]
[310879679,1704763850621,-500.0,0.00036712,2]
[310879680,1704763850630,-500.0,0.00036712,2]
[310879681,1704763850640,-500.0,0.00036712,2]
[310879682,1704763850650,-1300.3,0.00036712,2]
[310879683,1704763850660,-500.0,0.00036712,2]
[310879684,1704763850671,-500.0,0.00036712,2]
[310879685,1704763850681,-500.0,0.00036712,2]
[310879686,1704763850691,-500.0,0.00036712,2]
[310879687,1704763850702,-500.0,0.00036712,2]
[310879688,1704763850713,-500.0,0.00036712,2]
[310879689,1704763850723,-500.0,0.00036712,2]
[310879690,1704763850733,-500.0,0.00036712,2]
[310879691,1704763850743,-500.0,0.00036712,2]
[310879692,1704763850754,-595.61,0.00036712,2]
[310879693,1704763850764,-500.0,0.00036712,2]
[310879694,1704763850774,-500.0,0.00036712,2]
[310879695,1704763850784,-500.0,0.00036712,2]
[310879696,1704763850795,-384.59112878,0.00036712,2]
[310879697,1704763850805,-500.0,0.00036712,2]
[310879698,1704763850816,-938.87,0.00036712,2]
[310879699,1704763850825,-500.0,0.00036712,2]
[310879700,1704763850835,-500.0,0.00036712,2]
[310879701,1704763850847,-500.0,0.00036712,2]
[310879702,1704763850858,-622.82588525,0.00036712,2]
[310879703,1704763850869,-500.0,0.00036712,2]
[310879704,1704763850878,-500.0,0.00036712,2]
[310879705,1704763850888,-500.0,0.00036712,2]
[310879706,1704763850899,-500.0,0.00036712,2]
[310879707,1704763850909,-1603.58,0.00036712,2]
[310879708,1704763850919,-500.0,0.00036712,2]
[310879709,1704763850930,-498.64438833,0.00036712,2]
[310879710,1704763850939,-299.02111955,0.00036712,2]
[310879711,1704763850949,-673.02,0.00036712,2]
[310879712,1704763850960,-500.0,0.00036712,2]
[310879713,1704763850970,-500.0,0.00036712,2]
[310879714,1704763850981,-500.0,0.00036712,2]
[310879715,1704763850991,-500.0,0.00036712,2]
[310879716,1704763851002,-500.0,0.00036712,2]
[310879717,1704763851012,-500.0,0.00036712,2]
[310879718,1704763851023,-500.0,0.00036712,2]
[310879719,1704763851033,-500.0,0.00036712,2]
[310879720,1704763851044,-500.0,0.00036712,2]
[310879721,1704763851054,-1624.12,0.00036712,2]
[310879722,1704763851065,-1386.38,0.00036712,2]
[310879723,1704763851075,-500.0,0.00036712,2]
[310879724,1704763851085,-500.0,0.00036712,2]
[310879725,1704763851095,-500.0,0.00036712,2]
[310879726,1704763851105,-500.0,0.00036712,2]
[310879727,1704763851115,-500.0,0.00036712,2]
[310879728,1704763851125,-529.97,0.00036712,2]
[310879729,1704763851135,-500.0,0.00036712,2]
[310879730,1704763851145,-1237.49,0.00036712,2]
[310879731,1704763851155,-314.05322176,0.00036712,2]
[310879732,1704763851165,-500.0,0.00036712,2]
[310879733,1704763851176,-500.0,0.00036712,2]
[310879734,1704763851187,-500.0,0.00036712,2]
[310879735,1704763851197,-500.0,0.00036712,2]
[310879736,1704763851208,-1085.61,0.00036712,2]
[310879737,1704763851218,-500.0,0.00036712,2]
[310879738,1704763851229,-856.63,0.00036712,2]
[310879739,1704763851239,-500.0,0.00036712,2]
[310879740,1704763851249,-1836.91,0.00036712,2]
[310879741,1704763851260,-500.0,0.00036712,2]
[310879742,1704763851270,-500.0,0.00036712,2]
[310879743,1704763851280,-1162.17,0.00036712,2]
[310879744,1704763851290,-500.0,0.00036712,2]
[310879745,1704763851299,-5186.03,0.00036712,2]
[310879746,1704763851309,-500.0,0.00036712,2]
[310879747,1704763851319,-2694.64,0.00036712,2]
[310879748,1704763851330,-500.0,0.00036712,2]
[310879749,1704763851340,-500.0,0.00036712,2]
[310879750,1704763851354,-500.0,0.00036712,2]
[310879751,1704763851363,-500.0,0.00036712,2]
[310879752,1704763851372,-500.0,0.00036712,2]
[310879753,1704763851382,-1250.59,0.00036712,2]
[310879754,1704763851392,-2315.92,0.00036712,2]
[310879755,1704763851402,-500.0,0.00036712,2]
[310879756,1704763851411,-500.0,0.00036712,2]
[310879757,1704763851421,-630.69,0.00036712,2]
[310879758,1704763851431,-5708.91,0.00036712,2]
[310879759,1704763851441,-768.87,0.00036712,2]
[310879760,1704763851450,-13543.63,0.00036712,2]
[310879761,1704763851461,-500.0,0.00036712,2]
[310879762,1704763851471,-500.0,0.00036712,2]
[310879763,1704763851481,-1942.37,0.00036712,2]
[310879764,1704763851492,-500.0,0.00036712,2]
[310879765,1704763851502,-500.0,0.00036712,2]
[310879766,1704763851512,-591.97,0.00036712,2]
[310879767,1704763851523,-48896.68,0.00036712,2]
[310879768,1704763851532,-500.0,0.00036712,2]
[310879769,1704763851542,-2189.47,0.00036712,2]
[310879770,1704763851553,-1653.03,0.00036712,2]
[310879771,1704763851562,-500.0,0.00036712,2]
[310879772,1704763851573,-500.0,0.00036712,2]
[310879773,1704763851583,-500.0,0.00036712,2]
[310879774,1704763851595,-2042.88,0.00036712,2]
[310879775,1704763851605,-2520.41,0.00036712,2]
[310879776,1704763851615,-500.0,0.00036712,2]
[310879777,1704763851625,-500.0,0.00036712,2]
[310879778,1704763851635,-500.0,0.00036712,5]
[310879779,1704763851646,-500.0,0.00036712,2]
[310879780,1704763851656,-500.0,0.00036712,2]
[310879781,1704763851667,-665.06,0.00036712,2]
[310879782,1704763851677,-500.0,0.00036712,2]
[310879783,1704763851688,-1000.0,0.00036712,2]
[310879784,1704763851698,-500.0,0.00036712,2]
[310879785,1704763851709,-2260.43,0.00036712,2]
[310879786,1704763851719,-500.0,0.00036712,2]
[310879787,1704763851733,-500.0,0.00036712,2]
[310879788,1704763851742,-1401.77,0.00036712,2]
[310879789,1704763851753,-500.0,0.00036712,2]
[310879790,1704763851763,-500.0,0.00036712,2]
[310879791,1704763851773,-5000.0,0.00036844,7]
[310879792,1704763851783,-603.63781731,0.00036963,7]
[310879793,1704763851793,-500.0,0.00036986,2]
[310879794,1704763851805,-960.29,0.00036986,2]
[310879795,1704763851816,-500.0,0.00036986,2]
[310879796,1704763851827,-500.0,0.00036986,2]
[310879797,1704763851837,-500.0,0.00036986,2]
[310879798,1704763851848,-500.0,0.00036986,2]
[310879799,1704763851858,-951.92,0.00036986,2]
[310879800,1704763851868,-500.0,0.00036986,2]
[310879801,1704763851877,-500.0,0.00036986,2]
[310879802,1704763851886,-500.0,0.00036986,2]
[310879803,1704763851896,-1300.3,0.00036986,2]
[310879804,1704763851906,-448.54147917,0.00036986,2]
[310879805,1704763851917,-500.0,0.00036986,2]
[310879806,1704763851928,-500.0,0.00036986,2]
[310879807,1704763851938,-500.0,0.00036986,2]
[310879808,1704763851949,-500.0,0.00036986,2]
[310879809,1704763851959,-500.0,0.00036986,2]
[310879810,1704763851970,-500.0,0.00036986,2]
[310879811,1704763851979,-500.0,0.00036986,2]
[310879812,1704763851988,-500.0,0.00036986,2]
[310879813,1704763851997,-595.61,0.00036986,2]
[310879814,1704763852006,-500.0,0.00036986,2]
[310879815,1704763852015,-500.0,0.00036986,2]
[310879816,1704763852024,-500.0,0.00036986,2]
[310879817,1704763852033,-500.0,0.00036986,2]
[310879818,1704763852042,-938.87,0.00036986,2]
[310879819,1704763852051,-531.01459591,0.00036986,2]
[310879820,1704763852060,-223.14904465,0.00036986,2]
[310879821,1704763852298,-276.85095535,0.00036986,2]
[310879822,1704763852308,-560.42758382,0.00036986,2]
[310879823,1704763852318,-500.0,0.00036986,2]
[310879824,1704763852328,-500.0,0.00036986,2]
[310879825,1704763852338,-500.0,0.00036986,2]
[310879826,1704763852349,-500.0,0.00036986,2]
[310879827,1704763852359,-1603.58,0.00036986,2]
[310879828,1704763852369,-382.41511061,0.00036986,2]
[310879829,1704763852379,-673.02,0.00036986,2]
[310879830,1704763852390,-500.0,0.00036986,2]
[310879831,1704763852399,-500.0,0.00036986,2]
[310879832,1704763852409,-500.0,0.00036986,2]
[310879833,1704763852418,-500.0,0.00036986,2]
[310879834,1704763852428,-500.0,0.00036986,2]
[310879835,1704763852438,-593.62031933,0.00036986,2]
[310879836,1704763852448,-500.0,0.00036986,2]
[310879837,1704763852458,-631.40236102,0.00036986,2]
[310879838,1704763852469,-500.0,0.00036986,2]
[310879839,1704763852479,-1624.12,0.00036986,2]
[310879840,1704763852489,-1386.38,0.00036986,2]
[310879841,1704763852498,-500.0,0.00036986,2]
[310879842,1704763852508,-500.0,0.00036986,2]
[310879843,1704763852518,-500.0,0.00036986,2]
[310879844,1704763852527,-500.0,0.00036986,2]
[310879845,1704763852536,-500.0,0.00036986,2]
[310879846,1704763852546,-529.97,0.00036986,2]
[310879847,1704763852556,-500.0,0.00036986,2]
[310879848,1704763852566,-1237.49,0.00036986,2]
[310879849,1704763852577,-500.0,0.00036986,2]
[310879850,1704763852588,-500.0,0.00036986,2]
[310879851,1704763852599,-500.0,0.00036986,2]
[310879852,1704763852609,-500.0,0.00036986,2]
[310879853,1704763852619,-1085.61,0.00036986,2]
[310879854,1704763852629,-500.0,0.00036986,2]
[310879855,1704763852639,-856.63,0.00036986,2]
[310879856,1704763852649,-500.0,0.00036986,2]
[310879857,1704763852659,-1836.91,0.00036986,2]
[310879858,1704763852669,-500.0,0.00036986,2]
[310879859,1704763852677,-500.0,0.00036986,2]
[310879860,1704763852688,-1162.17,0.00036986,2]
[310879861,1704763852698,-500.0,0.00036986,2]
[310879862,1704763852709,-5186.03,0.00036986,2]
[310879863,1704763852719,-500.0,0.00036986,2]
[310879864,1704763852728,-2694.64,0.00036986,2]
[310879865,1704763852738,-500.0,0.00036986,2]
[310879866,1704763852749,-500.0,0.00036986,2]
[310879867,1704763852759,-500.0,0.00036986,2]
[310879868,1704763852768,-500.0,0.00036986,2]
[310879869,1704763852778,-500.0,0.00036986,2]
[310879870,1704763852789,-1250.59,0.00036986,2]
[310879871,1704763852799,-2315.92,0.00036986,2]
[310879872,1704763852809,-500.0,0.00036986,2]
[310879873,1704763852820,-500.0,0.00036986,2]
[310879874,1704763852830,-630.69,0.00036986,2]
[310879875,1704763852839,-5708.91,0.00036986,2]
[310879876,1704763852850,-768.87,0.00036986,2]
[310879877,1704763852861,-13543.63,0.00036986,2]
[310879878,1704763852871,-500.0,0.00036986,2]
[310879879,1704763852881,-500.0,0.00036986,2]
[310879880,1704763852891,-1942.37,0.00036986,2]
[310879881,1704763852901,-500.0,0.00036986,2]
[310879882,1704763852911,-589.62275204,0.00036986,2]
[310879883,1704763852922,-591.97,0.00036986,2]
[310879884,1704763852932,-26164.41776965,0.00036986,2]
[310879885,1704763853042,-928.05985678,0.00017563,2]
[310879886,1704763853077,-18.93999708,0.00017563,2]
[310879887,1704763853218,154.90705577,0.00017563,2]
[310879888,1704763853351,-764.76670726,0.00018172,2]
[310879889,1704763853488,-338.88691038,0.00017564,2]
[310879890,1704763853521,-6.9160594,0.00017564,2]
[310879939,1704764583746,-260.584921,0.00017564,2]
[310879940,1704764583958,-5.31805961,0.00017564,2]
[310880009,1704765032550,-154.90705577,0.00019969,2]
[310880011,1704765032560,-7554.27187771,0.0001997,2]
[310880013,1704765032569,-1736.89858519,0.00019971,2]
[310880015,1704765032578,-2484.59703634,0.00019971,2]
[310880017,1704765032587,-365.98415258,0.00019972,2]
[310880019,1704765032598,-154.90705577,0.00019972,2]
[310880021,1704765032607,-200.0,0.0002,2]
[310880023,1704765032617,-1194.83746505,0.0002,2]
[310880025,1704765032626,-151.67680964,0.0002,2]
[310880027,1704765032635,-154.90705577,0.0002,2]
[310880029,1704765032644,-154.90705577,0.00020999,2]
[310880046,1704765032795,-1201.12699336,0.00021,2]
[310880048,1704765032804,-3927.64829251,0.00022,2]
[310880050,1704765032813,-166.666666,0.00023658,2]
[310880052,1704765032822,-270.961244,0.00023807,2]
[310880053,1704765032831,-3119.46540727,0.00023867,2]
[310880054,1704765032840,-901.85472152,0.00023867,2]
[310880056,1704765032851,-154.90705577,0.00024,2]
[310880057,1704765032860,-783.16983902,0.00024,2]
[310880058,1704765032870,-166.666666,0.00024303,2]
[310880059,1704765032879,-166.666666,0.00024948,2]
[310880060,1704765032888,-613.86507578,0.00025,2]
[310880061,1704765032897,-154.90705577,0.00025477,2]
[310880062,1704765032906,-154.90705577,0.00025478,2]
[310880063,1704765032915,-200.0,0.00025479,2]
[310880064,1704765032924,-166.666666,0.00025593,2]
[310880065,1704765032933,-4709.99124251,0.00025899,2]
[310880066,1704765032941,-1322.74032498,0.000259,2]
[310880067,1704765032950,-166.666666,0.00026238,2]
[310880068,1704765032959,-166.666666,0.00026883,2]
[310880069,1704765032969,-2000.0,0.000273,2]
[310880070,1704765032978,-2000.0,0.0002731,2]
[310880071,1704765032987,-2000.0,0.0002732,2]
[310880072,1704765032997,-880.89337746,0.00027329,2]
[310880073,1704765033006,-2000.0,0.0002733,2]
[310880074,1704765033015,-2000.0,0.0002734,2]
[310880075,1704765033024,-2000.0,0.0002735,2]
[310880076,1704765033033,-2000.0,0.0002736,2]
[310880077,1704765033043,-3254.034475,0.0002737,2]
[310880078,1704765033052,-150.0,0.00027709,2]
[310880079,1704765033061,-150.114,0.00027709,2]
[310880080,1704765033071,-304.92883245,0.00028,2]
[310880081,1704765033080,-3126.08432531,0.00029,2]
[310880082,1704765033089,-2146.84090652,0.00029087,3]
[310880083,1704765034595,-3551.37494293,0.00029087,3]
[310880084,1704765034609,-282.50801309,0.0003,3]
[310880085,1704765034620,-411.7823274,0.00030126,2]
[310880086,1704765034632,-463.25005188,0.00030999,4]
[310880087,1704765034645,-1212.62271036,0.00031,4]
[310880088,1704765034657,-4665.39260003,0.000312,5]
[310880089,1704765034669,-9505.54,0.00032344,3]
[310880090,1704765034680,-155.07619644,0.00032353,4]
[310880091,1704765034692,-2696.52881797,0.00032354,10]
[310880092,1704765034704,-8051.13573296,0.00032714,3]
[310880093,1704765034720,-3355.51426704,0.00032714,3]
[310880094,1704765034732,-5581.05634266,0.00032724,3]
[310880109,1704765039780,-154.90705577,0.00019968,2]
[310880110,1704765039791,-463.25005188,0.0003,4]
[310880111,1704765039802,-875.7975897,0.00032824,4]
[310880112,1704765039812,-1064.17775553,0.00032865,2]